fUSD/lending_fUSD_20260524
["ID","MTS","AMOUNT","RATE_DAILY","PERIOD"]
[422870597,1779555038000,-306414.2315381,9.897e-05,2]
[422870611,1779555038000,-151.0,9.897e-05,2]
[422870595,1779555038000,-37220.7106076,9.897e-05,2]
[422870652,1779555038000,-2000.0,0.00010274,2]
[422870650,1779555038000,-8069.1751516,0.0001027,2]
[422870656,1779555038000,-4000.0,0.00010278,2]
[422870654,1779555038000,-433.0,0.00010278,2]
[422870658,1779555038000,-166.48,0.00010395,2]
[422870660,1779555038000,-622.35999015,0.00010474,2]
[422870662,1779555038000,-4296.28951767,0.00010475,2]
[422870664,1779555038000,-5703.70048233,0.00010475,2]
[422870666,1779555038000,-150.99,0.00010475,2]
[422870673,1779555038000,-9999.99,0.00010475,2]
[422870669,1779555038000,-24999.99,0.00010475,2]
[422870675,1779555038000,-6780.02,0.00010475,2]
[422870679,1779555038000,-15944.80128201,0.00010475,2]
[422870677,1779555038000,-299.99,0.00010475,2]
[422870593,1779555038000,-3059.4736837,9.897e-05,2]
[422870646,1779555038000,-200.0,0.0001015,2]
[422870648,1779555038000,-500.0,0.00010242,2]
[422870671,1779555038000,-5585.7,0.00010475,2]
[422870642,1779555038000,-150.0,0.00010134,2]
[422870607,1779555038000,-151.0,9.897e-05,2]
[422870644,1779555038000,-150.0,0.00010134,2]
[422870610,1779555038000,-4242.5147917,9.897e-05,2]
[422870614,1779555038000,-300.0,9.917e-05,2]
[422870617,1779555038000,-587.0,9.917e-05,2]
[422870620,1779555038000,-500.0,9.968e-05,2]
[422870621,1779555038000,-194.50766222,0.0001,2]
[422870615,1779555038000,-2351.0,9.917e-05,2]
[422870624,1779555038000,-359.96317328,0.0001,2]
[422870629,1779555038000,-163.47,0.0001,2]
[422870631,1779555038000,-698.19999979,0.0001,2]
[422870633,1779555038000,-4059.02,0.00010023,2]
[422870635,1779555038000,-166.48,0.00010027,2]
[422870626,1779555038000,-3100.0,0.0001,3]
[422870640,1779555038000,-366.84,0.00010101,2]
[422870638,1779555038000,-4000.0,0.00010027,2]
[422870759,1779555040000,-4100.0,0.000109,3]
[422870771,1779555040000,-152.0,0.00011,3]
[422870769,1779555040000,-150.0,0.00010959,2]
[422870770,1779555040000,-151.0,0.00010959,2]
[422870780,1779555040000,-7310.85070115,0.00011099,2]
[422870762,1779555040000,-823.0,0.00010908,2]
[422870772,1779555040000,-246.83671021,0.00011,5]
[422870781,1779555040000,-7310.85070115,0.00011099,2]
[422870773,1779555040000,-349.58764866,0.00011,7]
[422870784,1779555040000,-16637.91026298,0.00011099,2]
[422870779,1779555040000,-7310.85070115,0.00011099,2]
[422870778,1779555040000,-7310.85070116,0.00011099,2]
[422870775,1779555040000,-4000.0,0.0001103,2]
[422870774,1779555040000,-180.09060688,0.00011,7]
[422870776,1779555040000,-595.713414,0.00011056,2]
[422870782,1779555040000,-16637.91026298,0.00011099,2]
[422870785,1779555040000,-16637.91026298,0.00011099,2]
[422870787,1779555040000,-150.0,0.0001126,2]
[422870765,1779555040000,-500.0,0.00010958,3]
[422870777,1779555040000,-620.85690103,0.00011064,2]
[422870763,1779555040000,-3292.0,0.00010908,2]
[422870749,1779555040000,-500.0,0.00010516,2]
[422870766,1779555040000,-500.0,0.00010958,4]
[422870790,1779555040000,-666.0,0.0001128,2]
[422870743,1779555040000,-12091.79871799,0.00010475,2]
[422870748,1779555040000,-150.0,0.0001051,2]
[422870745,1779555040000,-499.99,0.00010475,2]
[422870744,1779555040000,-9999.99,0.00010475,2]
[422870746,1779555040000,-9999.99,0.00010475,2]
[422870750,1779555040000,-4000.0,0.00010529,2]
[422870751,1779555040000,-4000.0,0.00010779,2]
[422870747,1779555040000,-2656.54,0.00010475,2]
[422870760,1779555040000,-3886.167839,0.000109,2]
[422870753,1779555040000,-1579.521385,0.00010849,2]
[422870752,1779555040000,-500.0,0.0001079,2]
[422870755,1779555040000,-1579.521385,0.00010849,2]
[422870758,1779555040000,-150.0,0.00010885,2]
[422870767,1779555040000,-500.0,0.00010958,5]
[422870757,1779555040000,-605.612755,0.00010877,2]
[422870756,1779555040000,-1579.521385,0.00010849,2]
[422870761,1779555040000,-3886.167839,0.000109,2]
[422870764,1779555040000,-500.0,0.00010958,2]
[422870768,1779555040000,-500.0,0.00010958,6]
[422870754,1779555040000,-1579.521385,0.00010849,2]
[422870788,1779555040000,-300.0,0.0001128,2]
[422870801,1779555040000,-200.0,0.00011416,2]
[422870786,1779555040000,-3886.167839,0.00011257,2]
[422870821,1779555040000,-251.13501903,0.00012087,2]
[422870816,1779555040000,-1000.0,0.0001204,2]
[422870815,1779555040000,-734.48903,0.0001204,2]
[422870817,1779555040000,-1000.0,0.0001204,2]
[422870819,1779555040000,-7310.85070115,0.00012067,2]
[422870818,1779555040000,-1000.0,0.0001204,2]
[422870823,1779555040000,-150.0,0.0001209,2]
[422870814,1779555040000,-734.48903,0.0001204,2]
[422870822,1779555040000,-393.89534255,0.00012087,2]
[422870813,1779555040000,-734.48903,0.0001204,2]
[422870825,1779555040000,-170.51,0.00012116,2]
[422870827,1779555040000,-167.15,0.00012255,2]
[422870826,1779555040000,-3886.167839,0.00012168,2]
[422870828,1779555040000,-486.11,0.00012329,2]
[422870829,1779555040000,-2000.0,0.00012329,2]
[422870830,1779555040000,-158.14,0.00012431,2]
[422870831,1779555040000,-1252.0,0.00012435,2]
[422870833,1779555040000,-366.84,0.00012627,2]
[422870834,1779555040000,-170.51,0.00012667,2]
[422870789,1779555040000,-300.0,0.0001128,2]
[422870824,1779555040000,-16637.91026298,0.000121,2]
[422870809,1779555040000,-151.0,0.0001197,2]
[422870820,1779555040000,-169.36,0.00012075,2]
[422870803,1779555040000,-1444.45,0.00011507,2]
[422870804,1779555040000,-359.96317327,0.00011713,2]
[422870791,1779555040000,-204.808712,0.00011281,2]
[422870792,1779555040000,-1579.521385,0.00011281,2]
[422870783,1779555040000,-16637.91026298,0.00011099,2]
[422870794,1779555040000,-1579.521385,0.00011281,2]
[422870793,1779555040000,-1579.521385,0.00011281,2]
[422870795,1779555040000,-1579.521385,0.00011281,2]
[422870798,1779555040000,-7310.85070115,0.00011358,2]
[422870797,1779555040000,-736.0,0.00011306,2]
[422870799,1779555040000,-366.84,0.00011364,2]
[422870796,1779555040000,-2000.0,0.00011301,2]
[422870800,1779555040000,-16637.91026298,0.00011399,2]
[422870832,1779555040000,-350.0,0.00012601,2]
[422870802,1779555040000,-500.0,0.00011479,2]
[422870811,1779555040000,-4609.0,0.00011999,2]
[422870807,1779555040000,-32496.06303455,0.0001197,2]
[422870810,1779555040000,-1152.0,0.00011999,2]
[422870805,1779555040000,-169.46,0.00011799,2]
[422870806,1779555040000,-381.0,0.00011958,5]
[422870812,1779555040000,-168.93882877,0.00012027,2]
[422870808,1779555040000,-151.0,0.0001197,2]
[422870868,1779555041000,-500.0,0.00013698,2]
[422870875,1779555041000,-500.0,0.00013698,2]
[422870863,1779555041000,-151.0,0.00013695,2]
[422870867,1779555041000,-588.28828997,0.00013698,2]
[422870871,1779555041000,-500.0,0.00013698,2]
[422870873,1779555041000,-500.0,0.00013698,2]
[422870874,1779555041000,-500.0,0.00013698,2]
[422870872,1779555041000,-500.0,0.00013698,2]
[422870866,1779555041000,-300.0,0.00013697,2]
[422870865,1779555041000,-300.0,0.00013697,2]
[422870870,1779555041000,-500.0,0.00013698,2]
[422870869,1779555041000,-500.0,0.00013698,2]
[422870885,1779555041000,-248.58448134,0.00013698,2]
[422870877,1779555041000,-500.0,0.00013698,2]
[422870879,1779555041000,-299.3113989,0.00013698,2]
[422870886,1779555041000,-500.0,0.00013698,2]
[422870878,1779555041000,-500.0,0.00013698,2]
[422870876,1779555041000,-442.16,0.00013698,2]
[422870881,1779555041000,-500.0,0.00013698,2]
[422870887,1779555041000,-500.0,0.00013698,2]
[422870880,1779555041000,-500.0,0.00013698,2]
[422870883,1779555041000,-500.0,0.00013698,2]
[422870884,1779555041000,-500.0,0.00013698,2]
[422870864,1779555041000,-151.0,0.00013696,2]
[422870888,1779555041000,-500.0,0.00013698,2]
[422870862,1779555041000,-1714.0,0.00013684,2]
[422870841,1779555041000,-151.0,0.00012761,2]
[422870856,1779555041000,-7310.85070115,0.00013483,2]
[422870835,1779555041000,-638.30999827,0.00012723,2]
[422870836,1779555041000,-370.36,0.00012735,2]
[422870837,1779555041000,-300.0,0.00012756,2]
[422870838,1779555041000,-4230.81,0.00012757,2]
[422870891,1779555041000,-500.0,0.00013698,2]
[422870845,1779555041000,-3886.167839,0.00013079,2]
[422870842,1779555041000,-7310.85070115,0.00012775,2]
[422870839,1779555041000,-1762.61,0.00012757,2]
[422870840,1779555041000,-86119.95,0.00012757,2]
[422870847,1779555041000,-151.0,0.00013151,2]
[422870846,1779555041000,-151.0,0.00013151,2]
[422870848,1779555041000,-151.0,0.00013151,2]
[422870849,1779555041000,-151.0,0.00013151,2]
[422870844,1779555041000,-430.0,0.00012929,5]
[422870843,1779555041000,-16637.91026298,0.000128,2]
[422870851,1779555041000,-6453.0,0.00013199,2]
[422870861,1779555041000,-7855.87081405,0.00013599,2]
[422870850,1779555041000,-438.0,0.00013199,2]
[422870859,1779555041000,-5000.0,0.00013598,2]
[422870853,1779555041000,-500.0,0.00013233,2]
[422870860,1779555041000,-250.73582766,0.00013599,2]
[422870858,1779555041000,-705.07876991,0.000135,2]
[422870852,1779555041000,-170.51,0.00013218,2]
[422870857,1779555041000,-16637.91026298,0.000135,2]
[422870855,1779555041000,-500.0,0.00013356,2]
[422870854,1779555041000,-1200.0,0.00013356,2]
[422870890,1779555041000,-500.0,0.00013698,2]
[422870882,1779555041000,-500.0,0.00013698,2]
[422870893,1779555041000,-500.0,0.00013698,2]
[422870925,1779555041000,-500.0,0.00013698,2]
[422870920,1779555041000,-639.1817962,0.00013698,2]
[422870922,1779555041000,-500.0,0.00013698,2]
[422870919,1779555041000,-500.0,0.00013698,2]
[422870921,1779555041000,-500.0,0.00013698,2]
[422870926,1779555041000,-500.0,0.00013698,2]
[422870928,1779555041000,-305.53854586,0.00013698,2]
[422870931,1779555041000,-158.41543746,0.00013698,2]
[422870930,1779555041000,-601.7594973,0.00013698,2]
[422870932,1779555041000,-500.0,0.00013698,2]
[422870937,1779555041000,-6606.24,0.00013698,2]
[422870933,1779555041000,-500.8,0.00013698,2]
[422870927,1779555041000,-574.32140782,0.00013698,2]
[422870936,1779555041000,-6606.24,0.00013698,2]
[422870935,1779555041000,-6606.24,0.00013698,2]
[422870939,1779555041000,-6606.24,0.00013698,2]
[422870938,1779555041000,-6606.24,0.00013698,2]
[422870941,1779555041000,-6606.24,0.00013698,2]
[422870947,1779555041000,-500.0,0.00013698,2]
[422870940,1779555041000,-6606.24,0.00013698,2]
[422870944,1779555041000,-6606.24,0.00013698,2]
[422870942,1779555041000,-6606.24,0.00013698,2]
[422870945,1779555041000,-6606.24,0.00013698,2]
[422870946,1779555041000,-500.0,0.00013698,2]
[422870943,1779555041000,-6606.24,0.00013698,2]
[422870889,1779555041000,-500.0,0.00013698,2]
[422870934,1779555041000,-6606.24,0.00013698,2]
[422870923,1779555041000,-501.157632,0.00013698,2]
[422870929,1779555041000,-500.0,0.00013698,2]
[422870917,1779555041000,-1245.1,0.00013698,2]
[422870924,1779555041000,-500.0,0.00013698,2]
[422870894,1779555041000,-500.0,0.00013698,2]
[422870896,1779555041000,-1245.1,0.00013698,2]
[422870905,1779555041000,-1245.1,0.00013698,2]
[422870899,1779555041000,-1245.1,0.00013698,2]
[422870897,1779555041000,-1245.1,0.00013698,2]
[422870900,1779555041000,-1245.1,0.00013698,2]
[422870895,1779555041000,-1245.1,0.00013698,2]
[422870904,1779555041000,-1245.1,0.00013698,2]
[422870902,1779555041000,-1245.1,0.00013698,2]
[422870901,1779555041000,-1245.1,0.00013698,2]
[422870898,1779555041000,-1245.1,0.00013698,2]
[422870903,1779555041000,-1245.1,0.00013698,2]
[422870892,1779555041000,-500.0,0.00013698,2]
[422870918,1779555041000,-1245.200748,0.00013698,2]
[422870906,1779555041000,-1245.1,0.00013698,2]
[422870915,1779555041000,-1245.1,0.00013698,2]
[422870916,1779555041000,-1245.1,0.00013698,2]
[422870914,1779555041000,-1245.1,0.00013698,2]
[422870911,1779555041000,-1245.1,0.00013698,2]
[422870913,1779555041000,-1245.1,0.00013698,2]
[422870912,1779555041000,-1245.1,0.00013698,2]
[422870908,1779555041000,-1245.1,0.00013698,2]
[422870909,1779555041000,-1245.1,0.00013698,2]
[422870910,1779555041000,-1245.1,0.00013698,2]
[422870907,1779555041000,-1245.1,0.00013698,2]
[422870989,1779555042000,-2123.92580895,0.00013699,2]
[422870983,1779555042000,-2123.92580895,0.00013699,2]
[422870991,1779555042000,-2123.92580895,0.00013699,2]
[422870986,1779555042000,-2123.92580895,0.00013699,2]
[422870981,1779555042000,-2123.92580895,0.00013699,2]
[422870972,1779555042000,-2123.92580895,0.00013699,2]
[422870979,1779555042000,-2123.92580895,0.00013699,2]
[422870982,1779555042000,-2123.92580895,0.00013699,2]
[422870985,1779555042000,-2123.92580895,0.00013699,2]
[422870990,1779555042000,-2123.92580895,0.00013699,2]
[422870980,1779555042000,-2123.92580895,0.00013699,2]
[422870987,1779555042000,-2123.92580895,0.00013699,2]
[422870988,1779555042000,-2123.92580895,0.00013699,2]
[422871002,1779555042000,-2123.92580895,0.00013699,2]
[422870993,1779555042000,-2123.92580895,0.00013699,2]
[422870999,1779555042000,-2123.92580895,0.00013699,2]
[422871004,1779555042000,-2123.92580895,0.00013699,2]
[422871001,1779555042000,-2123.92580895,0.00013699,2]
[422871000,1779555042000,-2123.92580895,0.00013699,2]
[422871003,1779555042000,-2123.92580895,0.00013699,2]
[422870996,1779555042000,-2123.92580895,0.00013699,2]
[422870997,1779555042000,-2123.92580895,0.00013699,2]
[422870998,1779555042000,-2123.92580895,0.00013699,2]
[422870992,1779555042000,-2123.92580895,0.00013699,2]
[422870995,1779555042000,-2123.92580895,0.00013699,2]
[422870994,1779555042000,-2123.92580895,0.00013699,2]
[422870984,1779555042000,-2123.92580895,0.00013699,2]
[422870974,1779555042000,-2123.92580895,0.00013699,2]
[422870948,1779555042000,-500.0,0.00013698,2]
[422870970,1779555042000,-151.0,0.00013699,2]
[422871005,1779555042000,-2123.92580895,0.00013699,2]
[422870950,1779555042000,-500.0,0.00013698,2]
[422870949,1779555042000,-500.0,0.00013698,2]
[422870951,1779555042000,-500.0,0.00013698,2]
[422870952,1779555042000,-500.0,0.00013698,2]
[422870954,1779555042000,-1579.521385,0.00013698,2]
[422870957,1779555042000,-1579.521385,0.00013698,2]
[422870956,1779555042000,-151.0,0.00013698,2]
[422870955,1779555042000,-151.0,0.00013698,2]
[422870958,1779555042000,-1579.521385,0.00013698,2]
[422870959,1779555042000,-1579.521385,0.00013698,2]
[422870960,1779555042000,-180.2235566,0.00013699,2]
[422870953,1779555042000,-387.9939,0.00013698,2]
[422870964,1779555042000,-151.0,0.00013699,2]
[422870961,1779555042000,-2500.0,0.00013699,2]
[422870963,1779555042000,-166.66,0.00013699,2]
[422870962,1779555042000,-151.0,0.00013699,2]
[422870966,1779555042000,-2000.0,0.00013699,7]
[422870977,1779555042000,-2123.92580895,0.00013699,2]
[422870976,1779555042000,-2123.92580895,0.00013699,2]
[422870978,1779555042000,-2123.92580895,0.00013699,2]
[422870968,1779555042000,-9999.99,0.00013699,2]
[422870965,1779555042000,-200.0,0.00013699,2]
[422870967,1779555042000,-14018.16,0.00013699,2]
[422870969,1779555042000,-27698.0,0.00013699,2]
[422870971,1779555042000,-2123.92580895,0.00013699,2]
[422870975,1779555042000,-2123.92580895,0.00013699,2]
[422870973,1779555042000,-2123.92580895,0.00013699,2]
[422871016,1779555042000,-2123.92580895,0.00013699,2]
[422871084,1779555042000,-1579.521385,0.00013699,2]
[422871009,1779555042000,-2123.92580895,0.00013699,2]
[422871047,1779555042000,-2053.128282,0.00013699,2]
[422871043,1779555042000,-2053.128282,0.00013699,2]
[422871040,1779555042000,-2053.128282,0.00013699,2]
[422871049,1779555042000,-2053.128282,0.00013699,2]
[422871045,1779555042000,-2053.128282,0.00013699,2]
[422871052,1779555042000,-2053.128282,0.00013699,2]
[422871055,1779555042000,-2053.128282,0.00013699,2]
[422871056,1779555042000,-2053.128282,0.00013699,2]
[422871061,1779555042000,-2053.128282,0.00013699,2]
[422871060,1779555042000,-2053.128282,0.00013699,2]
[422871064,1779555042000,-2053.128282,0.00013699,2]
[422871067,1779555042000,-2053.128282,0.00013699,2]
[422871039,1779555042000,-2053.128282,0.00013699,2]
[422871072,1779555042000,-2053.128282,0.00013699,2]
[422871075,1779555042000,-2053.128282,0.00013699,2]
[422871077,1779555042000,-2053.128282,0.00013699,2]
[422871080,1779555042000,-1579.521385,0.00013699,2]
[422871079,1779555042000,-151.0,0.00013699,2]
[422871076,1779555042000,-2053.128282,0.00013699,2]
[422871017,1779555042000,-2123.92580895,0.00013699,2]
[422871078,1779555042000,-2053.128282,0.00013699,2]
[422871081,1779555042000,-246.532696,0.00013699,2]
[422871085,1779555042000,-170.51,0.00013768,2]
[422871082,1779555042000,-1579.521385,0.00013699,2]
[422871083,1779555042000,-1579.521385,0.00013699,2]
[422871086,1779555042000,-166.66,0.00013836,2]
[422871073,1779555042000,-2053.128282,0.00013699,2]
[422871033,1779555042000,-2053.128282,0.00013699,2]
[422871074,1779555042000,-2053.128282,0.00013699,2]
[422871037,1779555042000,-2053.128282,0.00013699,2]
[422871038,1779555042000,-2053.128282,0.00013699,2]
[422871006,1779555042000,-2123.92580895,0.00013699,2]
[422871007,1779555042000,-2123.92580895,0.00013699,2]
[422871015,1779555042000,-2123.92580895,0.00013699,2]
[422871012,1779555042000,-2123.92580895,0.00013699,2]
[422871008,1779555042000,-2123.92580895,0.00013699,2]
[422871014,1779555042000,-2123.92580895,0.00013699,2]
[422871010,1779555042000,-2123.92580895,0.00013699,2]
[422871013,1779555042000,-2123.92580895,0.00013699,2]
[422871018,1779555042000,-2123.92580895,0.00013699,2]
[422871020,1779555042000,-2123.92580895,0.00013699,2]
[422871030,1779555042000,-2123.92580896,0.00013699,2]
[422871019,1779555042000,-2123.92580895,0.00013699,2]
[422871011,1779555042000,-2123.92580895,0.00013699,2]
[422871024,1779555042000,-2123.92580895,0.00013699,2]
[422871036,1779555042000,-2053.128282,0.00013699,2]
[422871035,1779555042000,-2053.128282,0.00013699,2]
[422871034,1779555042000,-2053.128282,0.00013699,2]
[422871032,1779555042000,-2053.128282,0.00013699,2]
[422871025,1779555042000,-2123.92580895,0.00013699,2]
[422871027,1779555042000,-2123.92580895,0.00013699,2]
[422871023,1779555042000,-2123.92580895,0.00013699,2]
[422871028,1779555042000,-2123.92580895,0.00013699,2]
[422871022,1779555042000,-2123.92580895,0.00013699,2]
[422871029,1779555042000,-2123.92580895,0.00013699,2]
[422871026,1779555042000,-2123.92580895,0.00013699,2]
[422871021,1779555042000,-2123.92580895,0.00013699,2]
[422871031,1779555042000,-2123.92580895,0.00013699,2]
[422871115,1779555043000,-1579.521385,0.00014186,2]
[422871123,1779555043000,-500.0,0.00014252,5]
[422871121,1779555043000,-2206.121818,0.0001425,2]
[422871119,1779555043000,-166.66,0.00014247,2]
[422871111,1779555043000,-151.0,0.00014186,2]
[422871118,1779555043000,-16637.91026298,0.000142,2]
[422871116,1779555043000,-1579.521394,0.00014186,2]
[422871117,1779555043000,-7310.85070115,0.00014192,2]
[422871124,1779555043000,-500.0,0.00014252,5]
[422871127,1779555043000,-164.11863008,0.00014252,5]
[422871125,1779555043000,-480.0,0.00014252,5]
[422871120,1779555043000,-478.7,0.0001425,2]
[422871128,1779555043000,-500.0,0.00014252,5]
[422871126,1779555043000,-159.77369082,0.00014252,5]
[422871130,1779555043000,-494.0,0.00014252,5]
[422871129,1779555043000,-500.0,0.00014252,5]
[422871131,1779555043000,-262.52138871,0.00014252,5]
[422871132,1779555043000,-150.0,0.00014252,2]
[422871113,1779555043000,-1579.521385,0.00014186,2]
[422871122,1779555043000,-500.0,0.00014252,5]
[422871114,1779555043000,-1579.521385,0.00014186,2]
[422871095,1779555043000,-3549.305,0.00014091,2]
[422871108,1779555043000,-698.19999979,0.00014176,2]
[422871133,1779555043000,-150.0,0.00014252,2]
[422871087,1779555043000,-366.84,0.00013889,2]
[422871089,1779555043000,-3886.167839,0.00013989,2]
[422871088,1779555043000,-166.66,0.00013973,2]
[422871090,1779555043000,-250.0,0.00014,2]
[422871093,1779555043000,-10000.0,0.0001401,2]
[422871091,1779555043000,-2000.0,0.00014,2]
[422871092,1779555043000,-2000.0,0.00014,2]
[422871098,1779555043000,-927.0,0.00014091,2]
[422871094,1779555043000,-626.866,0.00014091,2]
[422871101,1779555043000,-1271.0,0.00014091,2]
[422871100,1779555043000,-1371.906,0.00014091,2]
[422871102,1779555043000,-150.611,0.00014091,2]
[422871105,1779555043000,-931.0,0.00014091,2]
[422871104,1779555043000,-1227.937,0.00014091,2]
[422871106,1779555043000,-6060.0,0.00014091,2]
[422871110,1779555043000,-295762.5942041,0.00014186,2]
[422871107,1779555043000,-166.66,0.0001411,2]
[422871109,1779555043000,-6606.24,0.00014185,2]
[422871112,1779555043000,-151.0,0.00014186,2]
[422871137,1779555043000,-150.0,0.00014252,5]
[422871178,1779555043000,-150.0,0.00014252,5]
[422871138,1779555043000,-150.0,0.00014252,5]
[422871161,1779555043000,-200.0,0.00014252,5]
[422871163,1779555043000,-150.0,0.00014252,5]
[422871160,1779555043000,-150.0,0.00014252,5]
[422871162,1779555043000,-150.0,0.00014252,5]
[422871171,1779555043000,-500.0,0.00014252,5]
[422871172,1779555043000,-500.0,0.00014252,5]
[422871166,1779555043000,-150.0,0.00014252,5]
[422871174,1779555043000,-500.0,0.00014252,5]
[422871169,1779555043000,-500.0,0.00014252,5]
[422871167,1779555043000,-200.0,0.00014252,5]
[422871168,1779555043000,-500.0,0.00014252,5]
[422871170,1779555043000,-500.0,0.00014252,5]
[422871164,1779555043000,-200.0,0.00014252,5]
[422871173,1779555043000,-500.0,0.00014252,5]
[422871177,1779555043000,-500.0,0.00014252,5]
[422871176,1779555043000,-500.0,0.00014252,5]
[422871175,1779555043000,-500.0,0.00014252,5]
[422871179,1779555043000,-500.0,0.00014252,5]
[422871134,1779555043000,-150.0,0.00014252,2]
[422871158,1779555043000,-628.0,0.00014252,5]
[422871159,1779555043000,-150.0,0.00014252,5]
[422871165,1779555043000,-150.0,0.00014252,5]
[422871157,1779555043000,-500.0,0.00014252,5]
[422871136,1779555043000,-150.0,0.00014252,5]
[422871155,1779555043000,-500.0,0.00014252,5]
[422871135,1779555043000,-165.0,0.00014252,2]
[422871140,1779555043000,-500.0,0.00014252,5]
[422871145,1779555043000,-500.0,0.00014252,5]
[422871141,1779555043000,-500.0,0.00014252,5]
[422871146,1779555043000,-500.0,0.00014252,5]
[422871139,1779555043000,-270.84985147,0.00014252,5]
[422871143,1779555043000,-500.0,0.00014252,5]
[422871142,1779555043000,-500.0,0.00014252,5]
[422871147,1779555043000,-500.0,0.00014252,5]
[422871144,1779555043000,-500.0,0.00014252,5]
[422871148,1779555043000,-500.0,0.00014252,5]
[422871150,1779555043000,-484.68457076,0.00014252,5]
[422871153,1779555043000,-500.0,0.00014252,5]
[422871149,1779555043000,-500.0,0.00014252,5]
[422871156,1779555043000,-500.0,0.00014252,5]
[422871152,1779555043000,-500.0,0.00014252,5]
[422871151,1779555043000,-500.0,0.00014252,5]
[422871154,1779555043000,-500.0,0.00014252,5]
[422871224,1779555044000,-11111.0,0.00014802,2]
[422871225,1779555044000,-342.0,0.00014807,2]
[422871223,1779555044000,-1000.0,0.000148,5]
[422871213,1779555044000,-5200.0,0.000146,5]
[422871209,1779555044000,-630.6979295,0.00014574,2]
[422871206,1779555044000,-6606.24,0.00014504,2]
[422871204,1779555044000,-166.66,0.00014384,2]
[422871212,1779555044000,-2000.0,0.00014599,7]
[422871210,1779555044000,-15000.0,0.00014589,2]
[422871214,1779555044000,-493.34627226,0.000147,2]
[422871229,1779555044000,-5800.0,0.00014866,2]
[422871216,1779555044000,-233.0,0.00014702,2]
[422871218,1779555044000,-7297.29722886,0.00014713,2]
[422871219,1779555044000,-8069.1751516,0.0001472,2]
[422871221,1779555044000,-500.0,0.00014726,2]
[422871217,1779555044000,-152.0,0.00014702,2]
[422871222,1779555044000,-509.55,0.00014766,2]
[422871220,1779555044000,-1200.0,0.00014726,2]
[422871227,1779555044000,-151.0,0.00014844,2]
[422871226,1779555044000,-10000.0,0.00014844,2]
[422871230,1779555044000,-251.78123832,0.00014869,2]
[422871207,1779555044000,-5000.0,0.0001451,15]
[422871215,1779555044000,-1000.0,0.000147,5]
[422871208,1779555044000,-9035.0,0.00014519,2]
[422871183,1779555044000,-377.19542247,0.00014252,5]
[422871203,1779555044000,-502.0,0.00014383,2]
[422871186,1779555044000,-332.66890927,0.00014252,5]
[422871181,1779555044000,-500.0,0.00014252,5]
[422871180,1779555044000,-500.0,0.00014252,5]
[422871182,1779555044000,-500.0,0.00014252,5]
[422871234,1779555044000,-5800.0,0.00014883,2]
[422871184,1779555044000,-500.0,0.00014252,5]
[422871185,1779555044000,-500.0,0.00014252,5]
[422871188,1779555044000,-500.0,0.00014252,5]
[422871198,1779555044000,-500.0,0.00014252,5]
[422871199,1779555044000,-500.0,0.00014252,5]
[422871189,1779555044000,-500.0,0.00014252,5]
[422871187,1779555044000,-500.0,0.00014252,5]
[422871190,1779555044000,-500.0,0.00014252,5]
[422871193,1779555044000,-500.0,0.00014252,5]
[422871194,1779555044000,-500.0,0.00014252,5]
[422871197,1779555044000,-500.0,0.00014252,5]
[422871196,1779555044000,-500.0,0.00014252,5]
[422871195,1779555044000,-500.0,0.00014252,5]
[422871192,1779555044000,-500.0,0.00014252,5]
[422871191,1779555044000,-500.0,0.00014252,5]
[422871200,1779555044000,-398.41773539,0.00014252,5]
[422871202,1779555044000,-170.51,0.00014319,2]
[422871201,1779555044000,-348.0,0.00014282,5]